fUST/lending_fUST_20240114
["ID","MTS","AMOUNT","RATE_DAILY","PERIOD"]
[311539799,1705204242335,-500.0,0.00030136,2]
[311539800,1705204242344,-500.0,0.00030136,2]
[311539802,1705204242353,-500.0,0.00030136,2]
[311539804,1705204242362,-500.0,0.00030136,2]
[311539807,1705204242372,-500.0,0.00030136,2]
[311539809,1705204242381,-500.0,0.00030136,2]
[311539810,1705204242390,-500.0,0.00030136,2]
[311539812,1705204242399,-500.0,0.00030136,2]
[311539814,1705204242408,-501.90739506,0.00030136,2]
[311539816,1705204242418,-500.0,0.00030136,2]
[311539819,1705204242429,-500.0,0.00030136,2]
[311539821,1705204242439,-500.0,0.00030136,2]
[311539823,1705204242448,-500.0,0.00030136,2]
[311539824,1705204242457,-500.0,0.00030136,2]
[311539826,1705204242467,-500.0,0.00030136,2]
[311539828,1705204242477,-504.33509197,0.00030136,2]
[311539830,1705204242486,-287.40897555,0.00030136,2]
[311539832,1705204242495,-453.24259165,0.00030136,2]
[311539834,1705204242504,-500.0,0.00030136,2]
[311539836,1705204242514,-500.0,0.00030136,2]
[311539839,1705204242523,-502.90104479,0.00030136,2]
[311539840,1705204242532,-500.0,0.00030136,2]
[311539842,1705204242541,-500.0,0.00030136,2]
[311539844,1705204242551,-500.0,0.00030136,2]
[311539846,1705204242561,-500.0,0.00030136,2]
[311539848,1705204242570,-500.0,0.00030136,2]
[311539850,1705204242580,-500.0,0.00030136,2]
[311539852,1705204242589,-529.78472823,0.00030136,2]
[311539854,1705204242598,-500.0,0.00030136,2]
[311539856,1705204242607,-500.0,0.00030136,2]
[311539858,1705204242616,-378.55444916,0.00030136,2]
[311539861,1705204242630,-121.44555084,0.00030136,2]
[311539863,1705204242639,-501.9980605,0.00030136,2]
[311539865,1705204242648,-500.0,0.00030136,2]
[311539867,1705204242657,-500.0,0.00030136,2]
[311539869,1705204242666,-36.80861266,0.00030136,2]
[311539965,1705204243536,-464.97987774,0.00030136,2]
[311539967,1705204243545,-166.59330962,0.00030136,2]
[311540007,1705204246597,-198.8089634,0.00029878,2]
[311540008,1705204246608,-333.40669038,0.00030136,2]
[311540009,1705204246618,-500.0,0.00030136,2]
[311540010,1705204246627,-500.0,0.00030136,2]
[311540011,1705204246639,-500.0,0.00030136,2]
[311540012,1705204246650,-500.0,0.00030136,2]
[311540013,1705204246659,-500.0,0.00030136,2]
[311540014,1705204246669,-500.0,0.00030136,2]
[311540015,1705204246678,-500.0,0.00030136,2]
[311540016,1705204246687,-500.0,0.00030136,2]
[311540017,1705204246696,-518.31642751,0.00030136,2]
[311540018,1705204246705,-500.0,0.00030136,2]
[311540019,1705204246714,-500.0,0.00030136,2]
[311540020,1705204246723,-500.0,0.00030136,2]
[311540021,1705204246732,-500.0,0.00030136,2]
[311540022,1705204246741,-500.0,0.00030136,2]
[311540023,1705204246751,-500.0,0.00030136,2]
[311540024,1705204246760,-500.0,0.00030136,2]
[311540025,1705204246768,-214.17436321,0.00030136,2]
[311540026,1705204246777,-502.22218072,0.00030136,2]
[311540027,1705204246786,-500.0,0.00030136,2]
[311540028,1705204246795,-508.05605959,0.00030136,2]
[311540029,1705204246806,-500.0,0.00030136,2]
[311540030,1705204246817,-505.10649631,0.00030136,2]
[311540031,1705204246827,-500.0,0.00030136,2]
[311540032,1705204246836,-500.0,0.00030136,2]
[311540033,1705204246845,-470.23578443,0.00030136,2]
[311540034,1705204246854,-500.0,0.00030136,2]
[311540035,1705204246863,-1000.0,0.00030136,2]
[311540036,1705204246872,-502.5804102,0.00030136,2]
[311540037,1705204246881,-500.0,0.00030136,2]
[311540038,1705204246890,-500.0,0.00030136,2]
[311540039,1705204246899,-500.0,0.00030136,2]
[311540040,1705204246908,-500.0,0.00030136,2]
[311540041,1705204246916,-500.0,0.00030136,2]
[311540042,1705204246925,-552.99822751,0.00030136,2]
[311540043,1705204246934,-500.0,0.00030136,2]
[311540044,1705204246943,-556.39010233,0.00030136,2]
[311540045,1705204246952,-503.04789827,0.00030136,2]
[311540046,1705204246961,-500.0,0.00030136,2]
[311540047,1705204246970,-155.14192239,0.00030136,2]
[311540048,1705204246979,-500.0,0.00030136,2]
[311540049,1705204246987,-500.0,0.00030136,2]
[311540050,1705204246996,-494.9431029,0.00030136,2]
[311540051,1705204247006,-502.85863465,0.00030136,2]
[311540052,1705204247014,-500.0,0.00030136,2]
[311540053,1705204247023,-501.63487213,0.00030136,2]
[311540054,1705204247032,-500.59988179,0.00030136,2]
[311540055,1705204247042,-501.46630927,0.00030136,2]
[311540056,1705204247051,-500.0,0.00030136,2]
[311540057,1705204247061,-508.28923396,0.00030136,2]
[311540058,1705204247069,-500.0,0.00030136,2]
[311540059,1705204247078,-253.64738023,0.00030136,2]
[311540060,1705204247087,-500.0,0.00030136,2]
[311540061,1705204247096,-500.0,0.00030136,2]
[311540062,1705204247106,-553.31632899,0.00030136,2]
[311540063,1705204247115,-500.0,0.00030136,2]
[311540064,1705204247124,-500.0,0.00030136,2]
[311540065,1705204247133,-201.13046414,0.00030136,2]
[311540066,1705204247141,-509.79128618,0.00030136,2]
[311540067,1705204247150,-500.0,0.00030136,2]
[311540068,1705204247159,-500.0,0.00030136,2]
[311540069,1705204247168,-500.0,0.00030136,2]
[311540070,1705204247177,-500.4137572,0.00030136,2]
[311540071,1705204247186,-500.0,0.00030136,2]
[311540072,1705204247195,-500.0,0.00030136,2]
[311540073,1705204247204,-500.0,0.00030136,2]
[311540074,1705204247213,-500.0,0.00030136,2]
[311540075,1705204247222,-500.0,0.00030136,2]
[311540076,1705204247231,-502.71971081,0.00030136,2]
[311540077,1705204247239,-195.11807323,0.00030136,2]
[311540078,1705204247248,-500.0,0.00030136,2]
[311540079,1705204247257,-500.0,0.00030136,2]
[311540080,1705204247268,-500.0,0.00030136,2]
[311540081,1705204247280,-500.0,0.00030136,2]
[311540082,1705204247290,-1400.25,0.00030136,2]
[311540083,1705204247300,-500.0,0.00030136,2]
[311540084,1705204247311,-500.0,0.00030136,2]
[311540085,1705204247321,-500.0,0.00030136,2]
[311540086,1705204247330,-500.0,0.00030136,2]
[311540087,1705204247341,-500.0,0.00030136,2]
[311540088,1705204247351,-500.0,0.00030136,2]
[311540089,1705204247362,-500.0,0.00030136,2]
[311540090,1705204247372,-500.0,0.00030136,2]
[311540091,1705204247383,-500.0,0.00030136,2]
[311540092,1705204247393,-500.0,0.00030136,2]
[311540093,1705204247403,-500.0,0.00030136,2]
[311540094,1705204247413,-653.48,0.00030136,2]
[311540095,1705204247423,-526.63370436,0.00030136,2]
[311540096,1705204247435,-500.0,0.00030136,2]
[311540097,1705204247446,-500.0,0.00030136,2]
[311540098,1705204247456,-500.0,0.00030136,2]
[311540099,1705204247466,-504.42543785,0.00030136,2]
[311540100,1705204247477,-500.0,0.00030136,2]
[311540101,1705204247486,-503.79190715,0.00030136,2]
[311540102,1705204247578,-500.0,0.00030136,2]
[311540103,1705204247588,-500.0,0.00030136,2]
[311540104,1705204247598,-500.0,0.00030136,2]
[311540105,1705204247609,-500.0,0.00030136,2]
[311540106,1705204247619,-501.85532918,0.00030136,2]
[311540107,1705204247628,-406.0743424,0.00030136,2]
[311540108,1705204247639,-633.23207699,0.00030136,2]
[311540109,1705204247649,-500.0,0.00030136,2]
[311540110,1705204247659,-500.0,0.00030136,2]
[311540111,1705204247669,-1105.67,0.00030136,2]
[311540112,1705204247679,-500.0,0.00030136,2]
[311540113,1705204247690,-500.89998059,0.00030136,2]
[311540114,1705204247699,-500.0,0.00030136,2]
[311540115,1705204247709,-188.03348626,0.00030136,2]
[311540116,1705204247723,-311.96651374,0.00030136,2]
[311540117,1705204247732,-500.0,0.00030136,2]
[311540118,1705204247741,-87.10164534,0.00030136,2]
[311540133,1705205301919,769.48,0.00029,30]
[311540294,1705205441826,-155.0,0.00027275,4]
[311540295,1705205441837,-1579.82218631,0.00028001,2]
[311540297,1705205441846,-264.69357404,0.00028001,2]
[311540321,1705205443972,-2606.86218237,0.00028001,2]
[311540322,1705205443986,-4141.99940079,0.00028001,2]
[311540334,1705205963455,-500000.0,0.00042076,30]
[311540335,1705205969318,-224.9303038,0.000295,30]
[311540336,1705205969370,-282.51,0.00030944,30]
[311540337,1705205969398,-1382.0,0.00030968,30]
[311540338,1705205969426,-1382.0,0.00030978,30]
[311540339,1705205969450,-1382.0,0.00030988,30]
[311540340,1705205969474,-794.0,0.00031202,30]
[311540341,1705205969501,-794.0,0.00031212,30]
[311540342,1705205969524,-794.0,0.00031222,30]
[311540343,1705205969561,-150.96980604,0.00033754,120]
[311540344,1705205969592,-150.96980604,0.00034442,30]
[311540345,1705205969618,-159.608457,0.00034521,31]
[311540346,1705205969643,-159.608457,0.00034521,38]
[311540347,1705205969666,-159.608457,0.00034521,46]
[311540348,1705205969691,-159.608457,0.00034521,53]
[311540349,1705205969715,-159.608457,0.00034521,61]
[311540350,1705205969738,-159.608457,0.00034521,68]
[311540351,1705205969763,-159.608457,0.00034521,75]
[311540352,1705205969788,-159.608457,0.00034521,83]
[311540353,1705205969813,-159.608457,0.00034521,90]
[311540354,1705205969837,-159.608457,0.00034521,97]
[311540355,1705205969861,-159.608457,0.00034521,105]
[311540356,1705205969884,-159.608457,0.00034521,112]
[311540357,1705205969907,-159.608457,0.00034521,120]
[311540358,1705205969930,-794.0,0.0003454,30]
[311540359,1705205969953,-1382.0,0.0003454,30]
[311540360,1705205969975,-794.0,0.0003455,30]
[311540361,1705205969999,-1382.0,0.0003455,30]
[311540362,1705205970022,-794.0,0.0003456,30]
[311540363,1705205970046,-1382.0,0.0003456,30]
[311540364,1705205970078,-1615.362542,0.00035616,120]
[311540365,1705205970103,-2555.17101669,0.00036,30]
[311540366,1705205970129,-1382.0,0.0003697,30]
[311540367,1705205970152,-794.0,0.0003697,30]
[311540368,1705205970175,-1382.0,0.0003698,30]
[311540369,1705205970197,-794.0,0.0003698,30]
[311540370,1705205970221,-1072.01965153,0.0003707,31]
[311540371,1705205970249,-1600.29237224,0.00038,120]
[311540372,1705205970272,-1000.0,0.00038356,120]
[311540373,1705205970295,-1000.0,0.00038356,120]
[311540374,1705205970317,-1000.0,0.00038356,120]
[311540375,1705205970339,-630.14682829,0.00038356,120]
[311540376,1705205970361,-633.54098007,0.00038678,30]
[311540377,1705205970384,-2000.0,0.00038728,30]
[311540378,1705205970406,-2000.0,0.00038728,30]
[311540379,1705205970430,-1355.15914856,0.00039726,30]
[311540380,1705205970457,-155.23925283,0.0004,120]
[311540381,1705205970480,-2823.40095454,0.0004,30]
[311540382,1705205970504,-460267.37739637,0.00040301,60]
[311540748,1705206620778,260.35384667,0.00022247,7]
[311540913,1705206644265,-266.94660645,0.00022247,2]
[311540914,1705206644275,-15891.22665678,0.00022247,2]
[311540916,1705206644285,-260.47007699,0.00022248,2]
[311540917,1705206644294,-15198.98219077,0.00022248,2]
[311540918,1705206644304,-677.43954104,0.00022248,2]
[311540919,1705206644313,-24900.0,0.00022249,2]
[311540920,1705206644322,-7291.9,0.00023231,3]
[311540921,1705206644332,-10500.33,0.0002324,3]
[311540922,1705206644342,-8750.28,0.0002324,3]
[311540923,1705206644351,-12600.4,0.00023241,3]
[311540924,1705206644361,-154.95351395,0.00023246,4]
[311540925,1705206644373,-425.2676334,0.00023246,2]
[311540926,1705206644383,-2710.13449611,0.00023248,2]
[311540927,1705206644393,-260.35384667,0.00023249,7]
[311540929,1705206644403,-18877.03741997,0.0002325,2]
[311540931,1705206644413,-170.81326,0.00023895,2]
[311540932,1705206644423,-4714.61123434,0.00025,2]
[311540933,1705206644433,-13122.02560316,0.00025196,2]
[311540934,1705206644442,-155.28778031,0.00025199,2]
[311540935,1705206644453,-824.90506797,0.00025199,2]
[311540936,1705206644464,-1115.64530026,0.00025199,2]
[311540937,1705206644474,-170.81326,0.00026724,2]
[311540938,1705206644484,-13879.66979621,0.00027942,2]
[311540939,1705206644494,-155.30519564,0.00027999,2]
[311540940,1705206644505,-219.19893537,0.00027999,2]
[311540941,1705206644515,-216.8600227,0.00027999,2]
[311540942,1705206644525,-451.79776934,0.00027999,2]
[311540943,1705206644535,-357.7096264,0.00027999,2]
[311540944,1705206644544,-1703.29655313,0.00027999,2]
[311540945,1705206644556,-569.37401545,0.00027999,2]
[311540946,1705206644567,-468.95073865,0.00027999,2]
[311540948,1705206644576,-408.62454557,0.00027999,20]
[311540949,1705206644586,-594.61076594,0.00027999,2]
[311540950,1705206644595,-309.89315267,0.00027999,2]
[311540951,1705206644605,-155.34727272,0.00028,2]
[311540952,1705206644614,-3738.08353316,0.00028,2]
[311540953,1705206644623,-410.71787832,0.00028001,2]
[311540954,1705206644632,-113045.18990456,0.00028001,7]
[311540955,1705206644641,-156.52857959,0.00028001,2]
[311540956,1705206644650,-202.54388049,0.00028387,2]
[311540957,1705206644658,-99117.12816315,0.00028387,3]
[311540958,1705206644668,-624.52644251,0.0002887,2]
[311540959,1705206644678,-198.8089634,0.00028978,2]
[311540960,1705206644688,-198.8089634,0.00028978,2]
[311540961,1705206644699,-2305.37797556,0.00029,2]
[311540962,1705206644709,-2000.0,0.00029,2]
[311540963,1705206644719,-2000.0,0.0002901,2]
[311540964,1705206644729,-2000.0,0.0002902,2]
[311540965,1705206644739,-2000.0,0.0002903,2]
[311540966,1705206644751,-2000.0,0.0002904,2]
[311540967,1705206644764,-2000.0,0.0002905,2]
[311540968,1705206644774,-2000.0,0.0002906,2]
[311540969,1705206644784,-2646.971278,0.0002907,2]
[311540970,1705206644794,-9103.92623029,0.000291,4]
[311540971,1705206644808,-155.0,0.00029136,2]
[311540972,1705206644819,-275.980348,0.00029178,2]
[311540973,1705206644830,-198.8089634,0.00029178,2]
[311540974,1705206644841,-198.8089634,0.00029178,2]
[311540975,1705206644852,-198.8089634,0.00029178,2]
[311540976,1705206644863,-198.8089634,0.00029315,2]
[311540977,1705206644873,-198.8089634,0.00029315,2]
[311540978,1705206644883,-198.8089634,0.00029315,2]
[311540979,1705206644893,-198.8089634,0.00029315,2]
[311540980,1705206644903,-153.0,0.00029315,2]
[311540981,1705206644913,-153.7958223,0.00029315,2]
[311540982,1705206644923,-153.0,0.00029315,2]
[311540983,1705206644933,-198.8089634,0.00029315,2]
[311540984,1705206644944,-153.0,0.00029315,2]
[311540985,1705206644956,-198.8089634,0.00029315,2]
[311540986,1705206644966,-153.0,0.00029315,2]
[311540987,1705206644978,-198.8089634,0.00029315,2]
[311540988,1705206644988,-153.0,0.00029315,2]
[311540989,1705206644998,-153.0,0.00029315,2]
[311540990,1705206645008,-198.8089634,0.00029315,2]
[311540991,1705206645018,-153.0,0.00029315,2]
[311540992,1705206645028,-153.0,0.00029315,2]
[311540993,1705206645038,-198.8089634,0.00029315,2]
[311540994,1705206645047,-153.2911349,0.00029315,2]
[311540995,1705206645057,-198.8089634,0.00029315,2]
[311540996,1705206645066,-220.27836454,0.00029348,2]
[311540997,1705206645075,-1000.0,0.00029349,7]
[311540998,1705206645085,-224.9303038,0.000295,30]
[311540999,1705206645095,-151.0,0.00029545,2]
[311541000,1705206645104,-509.22464917,0.0002979,3]
[311541001,1705206645113,-1150.65008109,0.00029797,2]
[311541002,1705206645123,-1742.54016348,0.00029798,2]
[311541003,1705206645133,-2040.19945881,0.00029798,2]
[311541004,1705206645144,-155.18522897,0.00029798,2]
[311541005,1705206645154,-421.33175717,0.00029798,2]
[311541006,1705206645163,-36993.81765305,0.00029799,2]
[311541007,1705206645172,-200.53,0.000298,4]
[311541008,1705206645181,-157.59641185,0.0002983,2]
[311541009,1705206645190,-10726.56663779,0.00029864,2]
[311541010,1705206645200,-1696.844933,0.0002999,2]
[311541011,1705206645208,-272.13904,0.00029999,2]
[311541012,1705206645218,-414.62347258,0.00029999,2]
[311541013,1705206645227,-546.60649106,0.00029999,2]
[311541014,1705206645236,-500.0,0.00029999,2]
[311541015,1705206645245,-500.0,0.00029999,2]
[311541016,1705206645254,-500.0,0.00029999,2]
[311541017,1705206645263,-500.0,0.00029999,2]
[311541018,1705206645272,-399.60289695,0.00029999,2]
[311541019,1705206645281,-500.0,0.00029999,2]
[311541021,1705206645290,-500.0,0.00029999,2]
[311541022,1705206645300,-303.89909697,0.00029999,2]
[311541024,1705206645309,-500.0,0.00029999,2]
[311541025,1705206645318,-500.0,0.00029999,2]
[311541026,1705206645328,-500.0,0.00029999,2]
[311541027,1705206645337,-500.0,0.00029999,2]
[311541028,1705206645347,-500.0,0.00029999,2]
[311541030,1705206645356,-900.48074021,0.0003,2]
[311541031,1705206645365,-155.14831659,0.0003,4]
[311541032,1705206645374,-155.38396562,0.0003,2]
[311541033,1705206645383,-6187.7426343,0.0003,2]
[311541034,1705206645393,-2190.2246157,0.0003,2]
[311541035,1705206645402,-2032.6063135,0.0003,3]
[311541036,1705206645411,-18564.33703768,0.0003,2]
[311541037,1705206645420,-699.30852097,0.0003,2]
[311541038,1705206645429,-155.2340082,0.0003,4]
[311541039,1705206645438,-1212.00001212,0.0003,2]
[311541040,1705206645447,-687.21028914,0.0003,4]
[311541041,1705206645456,-192.0,0.0003,2]
[311541042,1705206645466,-162.42558552,0.00030135,4]
[311541043,1705206645475,-462.3510226,0.00030135,2]
[311541044,1705206645483,-246.32054593,0.00030136,5]
[311541045,1705206645492,-502.03551782,0.00030136,2]
[311541046,1705206645501,-1921.70075971,0.00030136,4]
[311541047,1705206645511,-500.0,0.00030136,2]
[311541048,1705206645520,-500.0,0.00030136,2]
[311541049,1705206645529,-500.0,0.00030136,2]
[311541050,1705206645539,-500.0,0.00030136,2]
[311541051,1705206645548,-501.7927214,0.00030136,2]
[311541052,1705206645557,-500.42283029,0.00030136,2]
[311541053,1705206645566,-506.04398539,0.00030136,2]
[311541054,1705206645575,-500.0,0.00030136,2]
[311541055,1705206645584,-455.60495024,0.00030136,2]
[311541056,1705206645594,-532.46959026,0.00030136,2]
[311541057,1705206645603,-503.61558939,0.00030136,2]
[311541058,1705206645612,-501.67031792,0.00030136,2]
[311541059,1705206645622,-500.0,0.00030136,2]
[311541061,1705206645632,-502.34300527,0.00030136,2]
[311541063,1705206645641,-501.7758194,0.00030136,2]
[311541064,1705206645650,-500.0,0.00030136,2]
[311541066,1705206645659,-308.95333986,0.00030136,2]
[311541067,1705206645668,-575.64,0.00030136,2]
[311541068,1705206645677,-515.5027129,0.00030136,2]
[311541069,1705206645686,-504.54980695,0.00030136,2]
[311541071,1705206645695,-502.84042653,0.00030136,2]
[311541072,1705206645705,-500.0,0.00030136,2]
[311541073,1705206645714,-500.0,0.00030136,2]
[311541074,1705206645722,-198.01866133,0.00030136,2]
[311541075,1705206645731,-500.0,0.00030136,2]
[311541076,1705206645740,-500.0,0.00030136,2]
[311541077,1705206645750,-346.64960511,0.00030136,2]
[311541079,1705206645760,-500.0,0.00030136,2]
[311541081,1705206645770,-500.0,0.00030136,2]
[311541083,1705206645779,-500.0,0.00030136,2]
[311541084,1705206645789,-500.0,0.00030136,2]
[311541086,1705206645797,-500.0,0.00030136,2]
[311541088,1705206645806,-500.0,0.00030136,2]
[311541089,1705206645815,-500.0,0.00030136,2]
[311541091,1705206645824,-508.43949603,0.00030136,2]
[311541092,1705206645833,-500.0,0.00030136,2]
[311541094,1705206645842,-500.0,0.00030136,2]
[311541096,1705206645851,-500.0,0.00030136,2]
[311541097,1705206645860,-501.80714204,0.00030136,2]
[311541099,1705206645869,-183.47243345,0.00030136,2]
[311541101,1705206645878,-501.96851689,0.00030136,2]
[311541103,1705206645887,-500.0,0.00030136,2]
[311541104,1705206645896,-500.0,0.00030136,2]
[311541106,1705206645905,-500.0,0.00030136,2]
[311541108,1705206645914,-500.0,0.00030136,2]
[311541109,1705206645923,-502.39685917,0.00030136,2]
[311541111,1705206645932,-500.0,0.00030136,2]
[311541113,1705206645941,-568.8683551,0.00030136,2]
[311541115,1705206645949,-500.0,0.00030136,2]
[311541116,1705206645959,-500.0,0.00030136,2]
[311541117,1705206645968,-500.0,0.00030136,2]
[311541118,1705206645977,-501.51539704,0.00030136,2]
[311541119,1705206645986,-500.0,0.00030136,2]
[311541120,1705206645995,-500.0,0.00030136,2]
[311541121,1705206646006,-500.0,0.00030136,2]
[311541122,1705206646015,-1000.0,0.00030136,2]
[311541123,1705206646026,-343.96365382,0.00030136,2]
[311541124,1705206646037,-500.0,0.00030136,2]
[311541125,1705206646047,-500.0,0.00030136,2]
[311541126,1705206646056,-502.36498599,0.00030136,2]
[311541127,1705206646065,-500.0,0.00030136,2]
[311541128,1705206646075,-150.0,0.00030136,2]
[311541129,1705206646083,-500.0,0.00030136,2]
[311541130,1705206646094,-500.0,0.00030136,2]
[311541131,1705206646106,-503.3873243,0.00030136,2]
[311541132,1705206646115,-500.0,0.00030136,2]
[311541133,1705206646124,-500.0,0.00030136,2]
[311541134,1705206646135,-502.22175438,0.00030136,2]
[311541135,1705206646144,-504.14799284,0.00030136,2]
[311541136,1705206646153,-500.0,0.00030136,2]
[311541137,1705206646164,-509.39793533,0.00030136,2]
[311541138,1705206646172,-502.96832029,0.00030136,2]
[311541139,1705206646182,-500.0,0.00030136,2]
[311541140,1705206646192,-500.0,0.00030136,2]
[311541141,1705206646201,-500.0,0.00030136,2]
[311541142,1705206646212,-500.0,0.00030136,2]
[311541143,1705206646224,-500.0,0.00030136,2]
[311541144,1705206646234,-564.81559525,0.00030136,2]
[311541145,1705206646244,-500.0,0.00030136,2]
[311541146,1705206646254,-502.51187316,0.00030136,2]
[311541147,1705206646263,-500.0,0.00030136,2]
[311541148,1705206646272,-500.0,0.00030136,2]
[311541149,1705206646282,-505.56549688,0.00030136,2]
[311541150,1705206646292,-500.0,0.00030136,2]
[311541151,1705206646301,-619.53742458,0.00030136,2]
[311541152,1705206646310,-500.0,0.00030136,2]
[311541153,1705206646319,-500.0,0.00030136,2]
[311541154,1705206646407,-500.0,0.00030136,2]
[311541155,1705206646419,-500.0,0.00030136,2]
[311541156,1705206646430,-366.94048723,0.00030136,2]
[311541157,1705206646440,-500.0,0.00030136,2]
[311541158,1705206646449,-503.3382649,0.00030136,2]
[311541159,1705206646458,-500.0,0.00030136,2]
[311541160,1705206646467,-500.0,0.00030136,2]
[311541161,1705206646476,-500.0,0.00030136,2]
[311541162,1705206646486,-500.0,0.00030136,2]
[311541163,1705206646496,-501.03600058,0.00030136,2]
[311541164,1705206646508,-500.0,0.00030136,2]
[311541165,1705206646518,-507.64365218,0.00030136,2]
[311541166,1705206646527,-500.0,0.00030136,2]
[311541167,1705206646537,-505.87450352,0.00030136,2]
[311541168,1705206646547,-602.72039454,0.00030136,2]
[311541169,1705206646556,-500.0,0.00030136,2]
[311541170,1705206646566,-500.0,0.00030136,2]
[311541171,1705206646577,-501.7644849,0.00030136,2]
[311541172,1705206646587,-500.0,0.00030136,2]
[311541173,1705206646599,-500.0,0.00030136,2]
[311541174,1705206646610,-500.0,0.00030136,2]
[311541175,1705206646621,-500.0,0.00030136,2]
[311541176,1705206646631,-500.0,0.00030136,2]
[311541177,1705206646642,-500.0,0.00030136,2]
[311541178,1705206646653,-500.0,0.00030136,2]
[311541179,1705206646664,-500.0,0.00030136,2]
[311541180,1705206646674,-500.0,0.00030136,2]
[311541181,1705206646684,-500.0,0.00030136,2]
[311541182,1705206646695,-500.0,0.00030136,2]
[311541183,1705206646705,-500.0,0.00030136,2]
[311541184,1705206646715,-500.0,0.00030136,2]
[311541185,1705206646726,-500.0,0.00030136,2]
[311541186,1705206646737,-564.21902284,0.00030136,2]
[311541187,1705206646747,-1059.6,0.00030136,2]
[311541188,1705206646762,-500.0,0.00030136,2]
[311541189,1705206646773,-500.0,0.00030136,2]
[311541190,1705206646782,-500.0,0.00030136,2]
[311541191,1705206646793,-500.0,0.00030136,2]
[311541192,1705206646804,-500.0,0.00030136,2]
[311541193,1705206646816,-500.0,0.00030136,2]
[311541194,1705206646826,-500.0,0.00030136,2]
[311541195,1705206646837,-500.0,0.00030136,2]
[311541196,1705206646847,-506.60600586,0.00030136,2]
[311541197,1705206646858,-500.0,0.00030136,2]
[311541198,1705206646868,-500.0,0.00030136,2]
[311541199,1705206646878,-500.0,0.00030136,2]
[311541200,1705206646889,-500.0,0.00030136,2]
[311541201,1705206646899,-310.91729699,0.00030136,2]
[311541202,1705206646908,-500.0,0.00030136,2]
[311541203,1705206646918,-500.0,0.00030136,2]
[311541204,1705206646927,-500.0,0.00030136,2]
[311541205,1705206646938,-500.0,0.00030136,2]
[311541206,1705206646949,-500.0,0.00030136,2]
[311541207,1705206646959,-500.0,0.00030136,2]
[311541208,1705206646970,-500.0,0.00030136,2]
[311541209,1705206646979,-500.0,0.00030136,2]
[311541210,1705206646991,-500.0,0.00030136,2]
[311541211,1705206647002,-500.0,0.00030136,2]
[311541212,1705206647011,-506.61890384,0.00030136,2]
[311541213,1705206647022,-500.0,0.00030136,2]
[311541214,1705206647032,-500.0,0.00030136,2]
[311541215,1705206647042,-500.0,0.00030136,2]
[311541216,1705206647052,-500.0,0.00030136,2]
[311541217,1705206647061,-509.43458407,0.00030136,2]
[311541218,1705206647071,-534.24860019,0.00030136,2]
[311541219,1705206647080,-501.62544627,0.00030136,2]
[311541220,1705206647089,-500.0,0.00030136,2]
[311541221,1705206647099,-500.0,0.00030136,2]
[311541222,1705206647108,-489.49394302,0.00030136,2]
[311541223,1705206647118,-500.0,0.00030136,2]
[311541224,1705206647126,-500.0,0.00030136,2]
[311541225,1705206647135,-500.0,0.00030136,2]
[311541226,1705206647144,-500.0,0.00030136,2]
[311541227,1705206647153,-641.52,0.00030136,2]
[311541228,1705206647163,-500.0,0.00030136,2]
[311541229,1705206647172,-3687.24,0.00030136,2]
[311541230,1705206647181,-500.0,0.00030136,2]
[311541231,1705206647191,-500.0,0.00030136,2]
[311541232,1705206647202,-500.0,0.00030136,2]
[311541233,1705206647212,-505.04437629,0.00030136,2]